fUST/lending_fUST_20250619
["ID","MTS","AMOUNT","RATE_DAILY","PERIOD"]
[366535881,1750309839989,-824.03,0.00022191,6]
[366535883,1750309839999,-460.0,0.00022191,6]
[366535884,1750309840009,-430.0,0.00022191,6]
[366535885,1750309840019,-460.0,0.00022191,6]
[366535886,1750309840033,-460.0,0.00022191,6]
[366535887,1750309840042,-3006.24,0.00022191,6]
[366535888,1750309840052,-548.63,0.00022191,6]
[366535889,1750309840061,-460.0,0.00022191,6]
[366535890,1750309840072,-3049.59,0.00022191,6]
[366535891,1750309840083,-460.0,0.00022191,6]
[366535892,1750309840093,-704.68,0.00022191,6]
[366535893,1750309840102,-1690.2,0.00022191,6]
[366535894,1750309840113,-3997.06,0.00022191,6]
[366535895,1750309840123,-531.23,0.00022191,6]
[366535896,1750309840133,-460.0,0.00022191,6]
[366535897,1750309840143,-2527.93,0.00022191,6]
[366535898,1750309840154,-460.0,0.00022191,6]
[366535899,1750309840163,-534.87,0.00022191,6]
[366535900,1750309840173,-460.0,0.00022191,6]
[366535901,1750309840183,-3164.38,0.00022191,6]
[366535902,1750309840192,-847.39,0.00022191,6]
[366535903,1750309840202,-2987.29,0.00022191,6]
[366535904,1750309840212,-460.0,0.00022191,6]
[366535905,1750309840350,-350.0,0.00022191,6]
[366535906,1750309840360,-3632.51,0.00022191,6]
[366535907,1750309840370,-1204.87,0.00022191,6]
[366535908,1750309840380,-485.96,0.00022191,6]
[366535909,1750309840390,-460.0,0.00022191,6]
[366535910,1750309840400,-959.8,0.00022191,6]
[366535911,1750309840409,-1064.11,0.00022191,6]
[366535912,1750309840418,-786.47,0.00022191,6]
[366535913,1750309840428,-460.0,0.00022191,6]
[366535914,1750309840438,-1518.83,0.00022191,6]
[366535915,1750309840447,-460.0,0.00022191,6]
[366535916,1750309840456,-1462.08,0.00022191,6]
[366535917,1750309840466,-460.0,0.00022191,6]
[366535918,1750309840476,-463.23,0.00022191,6]
[366535919,1750309840485,-460.0,0.00022191,6]
[366535920,1750309840495,-460.0,0.00022191,6]
[366535921,1750309840505,-512.31,0.00022191,6]
[366535922,1750309840515,-460.0,0.00022191,6]
[366535923,1750309840524,-460.0,0.00022191,6]
[366535924,1750309840533,-460.0,0.00022191,6]
[366535925,1750309840543,-460.0,0.00022191,6]
[366535926,1750309840552,-460.0,0.00022191,6]
[366535927,1750309840562,-460.0,0.00022191,6]
[366535928,1750309840571,-460.0,0.00022191,6]
[366535929,1750309840580,-1136.67,0.00022191,6]
[366535930,1750309840590,-460.0,0.00022191,6]
[366535931,1750309840599,-460.0,0.00022191,6]
[366535932,1750309840609,-460.0,0.00022191,6]
[366535933,1750309840618,-773.11,0.00022191,6]
[366535934,1750309840628,-460.0,0.00022191,6]
[366535935,1750309840637,-2305.12,0.00022191,6]
[366535936,1750309840647,-460.0,0.00022191,6]
[366535937,1750309840657,-300.0,0.00022191,2]
[366535938,1750309840666,-460.0,0.00022191,6]
[366535939,1750309840676,-460.0,0.00022191,6]
[366535940,1750309840685,-1517.24,0.00022191,6]
[366535941,1750309840694,-1409.08,0.00022191,6]
[366535942,1750309840704,-534.92,0.00022191,6]
[366535943,1750309840713,-460.0,0.00022191,6]
[366535944,1750309840723,-460.0,0.00022191,6]
[366535945,1750309840733,-460.0,0.00022191,6]
[366535946,1750309840751,-950.28,0.00022191,6]
[366535947,1750309840761,-460.0,0.00022191,6]
[366535948,1750309840771,-460.0,0.00022191,6]
[366535949,1750309840780,-338.9,0.00022191,2]
[366535950,1750309840789,-787.71,0.00022191,6]
[366535951,1750309840798,-3127.51,0.00022191,6]
[366535952,1750309840808,-792.82,0.00022191,6]
[366535953,1750309840818,-581.37,0.00022191,6]
[366535954,1750309840828,-250.18097303,0.00022191,6]
[366535955,1750309840837,-223.73951649,0.00022242,8]
[366535956,1750309840847,-407.83340584,0.00022254,2]
[366535957,1750309840857,-151.0,0.00022355,7]
[366535958,1750309840866,-151.0,0.00022355,7]
[366535959,1750309840876,-168.0,0.00022358,2]
[366535960,1750309840885,-168.0,0.0002236,2]
[366535961,1750309840894,-9109.9986801,0.00022365,2]
[366535962,1750309840904,-595.10848717,0.00022373,3]
[366535963,1750309840913,-160.0,0.00022378,2]
[366535964,1750309840923,-160.0,0.00022378,2]
[366535965,1750309840932,-160.0,0.00022378,2]
[366535966,1750309840944,-845.93775772,0.00022378,2]
[366535967,1750309840953,-230.0259007,0.00022378,2]
[366535968,1750309840963,-12544.68530873,0.00022378,2]
[366535969,1750309840973,-160.0,0.00022378,2]
[366535970,1750309840985,-213.47708638,0.00022378,2]
[366535971,1750309840995,-424.78309573,0.00022378,2]
[366535972,1750309841005,-160.0,0.00022378,2]
[366535973,1750309841015,-160.0,0.00022394,2]
[366535974,1750309841028,-554.58377625,0.00022411,2]
[366535975,1750309841037,-420.0,0.00022437,2]
[366535976,1750309841048,-420.0,0.00022438,2]
[366535977,1750309841058,-5000.0,0.00022463,2]
[366535978,1750309841068,-151.0,0.00022465,7]
[366535979,1750309841079,-151.0,0.00022465,7]
[366535980,1750309841088,-151.0,0.00022465,7]
[366535981,1750309841098,-151.891711,0.00022465,7]
[366535982,1750309841108,-151.0,0.00022465,7]
[366535983,1750309841119,-460.0,0.00022465,6]
[366535984,1750309841128,-460.0,0.00022465,6]
[366535985,1750309841138,-460.0,0.00022465,6]
[366535986,1750309841147,-746.15,0.00022465,6]
[366535987,1750309841157,-460.0,0.00022465,6]
[366535988,1750309841167,-460.0,0.00022465,6]
[366535989,1750309841177,-460.0,0.00022465,6]
[366535990,1750309841186,-396.32208152,0.00022465,6]
[366535991,1750309841195,-534.19,0.00022465,6]
[366535992,1750309841204,-522.2,0.00022465,6]
[366535993,1750309841214,-460.0,0.00022465,6]
[366535994,1750309841224,-1818.95,0.00022465,6]
[366535995,1750309841234,-460.0,0.00022465,6]
[366535996,1750309841244,-460.0,0.00022465,6]
[366535997,1750309841254,-460.0,0.00022465,6]
[366535998,1750309841263,-824.03,0.00022465,6]
[366535999,1750309841274,-460.0,0.00022465,6]
[366536000,1750309841283,-460.0,0.00022465,6]
[366536001,1750309841293,-460.0,0.00022465,6]
[366536002,1750309841303,-3006.24,0.00022465,6]
[366536003,1750309841312,-548.63,0.00022465,6]
[366536004,1750309841322,-460.0,0.00022465,6]
[366536005,1750309841332,-3049.59,0.00022465,6]
[366536006,1750309841341,-460.0,0.00022465,6]
[366536007,1750309841351,-704.68,0.00022465,6]
[366536008,1750309841362,-1690.2,0.00022465,6]
[366536009,1750309841372,-531.23,0.00022465,6]
[366536010,1750309841382,-3997.06,0.00022465,6]
[366536011,1750309841391,-460.0,0.00022465,6]
[366536012,1750309841400,-2527.93,0.00022465,6]
[366536013,1750309841410,-460.0,0.00022465,6]
[366536014,1750309841420,-534.87,0.00022465,6]
[366536015,1750309841430,-431.93178584,0.00022465,6]
[366536016,1750309841439,-3164.38,0.00022465,6]
[366536017,1750309841449,-847.39,0.00022465,6]
[366536018,1750309841459,-2987.29,0.00022465,6]
[366536019,1750309841469,-460.0,0.00022465,6]
[366536020,1750309841479,-3632.51,0.00022465,6]
[366536021,1750309841488,-1204.87,0.00022465,6]
[366536022,1750309841498,-485.96,0.00022465,6]
[366536023,1750309841507,-460.0,0.00022465,6]
[366536024,1750309841517,-959.8,0.00022465,6]
[366536025,1750309841527,-1064.11,0.00022465,6]
[366536026,1750309841536,-786.47,0.00022465,6]
[366536027,1750309841546,-460.0,0.00022465,6]
[366536028,1750309841556,-1518.83,0.00022465,6]
[366536029,1750309841566,-1462.08,0.00022465,6]
[366536030,1750309841575,-460.0,0.00022465,6]
[366536031,1750309841585,-460.0,0.00022465,6]
[366536032,1750309841595,-463.23,0.00022465,6]
[366536033,1750309841606,-460.0,0.00022465,6]
[366536034,1750309841620,-512.31,0.00022465,6]
[366536035,1750309841634,-460.0,0.00022465,6]
[366536036,1750309841647,-445.44968143,0.00022465,6]
[366536037,1750309841661,-460.0,0.00022465,6]
[366536038,1750309841673,-460.0,0.00022465,6]
[366536039,1750309841685,-460.0,0.00022465,6]
[366536040,1750309841698,-386.61908509,0.00022465,6]
[366536041,1750309841709,-430.0,0.00022465,6]
[366536042,1750309841722,-460.0,0.00022465,6]
[366536043,1750309841735,-1136.67,0.00022465,6]
[366536044,1750309841748,-460.0,0.00022465,6]
[366536045,1750309841761,-460.0,0.00022465,6]
[366536046,1750309841774,-460.0,0.00022465,6]
[366536047,1750309841788,-773.11,0.00022465,6]
[366536048,1750309841801,-460.0,0.00022465,6]
[366536049,1750309841813,-2305.12,0.00022465,6]
[366536050,1750309841825,-460.0,0.00022465,6]
[366536051,1750309841836,-300.0,0.00022465,2]
[366536052,1750309841849,-460.0,0.00022465,6]
[366536053,1750309841861,-460.0,0.00022465,6]
[366536054,1750309841873,-1517.24,0.00022465,6]
[366536055,1750309841886,-1409.08,0.00022465,6]
[366536056,1750309841898,-534.92,0.00022465,6]
[366536057,1750309841910,-460.0,0.00022465,6]
[366536058,1750309841921,-460.0,0.00022465,6]
[366536059,1750309841931,-460.0,0.00022465,6]
[366536060,1750309841944,-950.28,0.00022465,6]
[366536061,1750309841954,-491.98987172,0.00022465,6]
[366536062,1750309841967,-460.0,0.00022465,6]
[366536063,1750309841979,-787.71,0.00022465,6]
[366536064,1750309841993,-3127.51,0.00022465,6]
[366536065,1750309842004,-792.82,0.00022465,6]
[366536066,1750309842016,-581.37,0.00022465,6]
[366536067,1750309842032,-458.82891024,0.00022493,2]
[366536068,1750309842044,-168.0,0.000225,2]
[366536069,1750309842059,-65713.52,0.000225,7]
[366536070,1750309842071,-213.47708638,0.000225,7]
[366536071,1750309842082,-12544.68530873,0.000225,7]
[366536072,1750309842093,-168.0,0.00022551,2]
[366536073,1750309842105,-168.0,0.00022552,2]
[366536074,1750309842116,-500.0,0.00022583,2]
[366536075,1750309842128,-168.0,0.0002267,2]
[366536076,1750309842143,-223.73951649,0.00022674,8]
[366536077,1750309842156,-306.0,0.00022712,2]
[366536078,1750309842169,-153.0,0.00022712,2]
[366536079,1750309842179,-250.0,0.00022715,2]
[366536080,1750309842192,-151.0,0.00022739,7]
[366536081,1750309842203,-151.0,0.00022739,7]
[366536082,1750309842216,-151.0,0.00022739,7]
[366536083,1750309842229,-460.0,0.00022739,6]
[366536084,1750309842240,-460.0,0.00022739,6]
[366536085,1750309842250,-460.0,0.00022739,6]
[366536086,1750309842262,-746.15,0.00022739,6]
[366536087,1750309842273,-460.0,0.00022739,6]
[366536088,1750309842283,-341.56654318,0.00022739,6]
[366536089,1750309842294,-534.19,0.00022739,6]
[366536090,1750309842305,-522.2,0.00022739,6]
[366536091,1750309842317,-1818.95,0.00022739,6]
[366536092,1750309842328,-460.0,0.00022739,6]
[366536093,1750309842339,-253.95705016,0.00022739,6]
[366536094,1750309842351,-286.84536825,0.00022739,6]
[366536095,1750309842362,-550.65944708,0.00022739,6]
[366536096,1750309842373,-824.03,0.00022739,6]
[366536097,1750309842384,-460.0,0.00022739,6]
[366536098,1750309842395,-460.0,0.00022739,6]
[366536099,1750309842407,-460.0,0.00022739,6]
[366536100,1750309842419,-3006.24,0.00022739,6]
[366536101,1750309842430,-548.63,0.00022739,6]
[366536102,1750309842441,-460.0,0.00022739,6]
[366536103,1750309842452,-3049.59,0.00022739,6]
[366536104,1750309842465,-460.0,0.00022739,6]
[366536105,1750309842477,-704.68,0.00022739,6]
[366536106,1750309842488,-1690.2,0.00022739,6]
[366536107,1750309842499,-531.23,0.00022739,6]
[366536108,1750309842511,-3997.06,0.00022739,6]
[366536109,1750309842522,-460.0,0.00022739,6]
[366536111,1750309842534,-2527.93,0.00022739,6]
[366536113,1750309842544,-460.0,0.00022739,6]
[366536115,1750309842556,-534.87,0.00022739,6]
[366536117,1750309842566,-3164.38,0.00022739,6]
[366536120,1750309842580,-847.39,0.00022739,6]
[366536122,1750309842590,-2987.29,0.00022739,6]
[366536124,1750309842601,-460.0,0.00022739,6]
[366536126,1750309842612,-3632.51,0.00022739,6]
[366536128,1750309842622,-1204.87,0.00022739,6]
[366536130,1750309842633,-485.96,0.00022739,6]
[366536132,1750309842644,-460.0,0.00022739,6]
[366536135,1750309842655,-959.8,0.00022739,6]
[366536137,1750309842667,-1064.11,0.00022739,6]
[366536139,1750309842678,-786.47,0.00022739,6]
[366536141,1750309842689,-460.0,0.00022739,6]
[366536144,1750309842701,-1518.83,0.00022739,6]
[366536146,1750309842712,-1462.08,0.00022739,6]
[366536148,1750309842723,-460.0,0.00022739,6]
[366536150,1750309842734,-460.0,0.00022739,6]
[366536152,1750309842746,-463.23,0.00022739,6]
[366536154,1750309842756,-460.0,0.00022739,6]
[366536157,1750309842768,-512.31,0.00022739,6]
[366536159,1750309842779,-460.0,0.00022739,6]
[366536161,1750309842790,-460.0,0.00022739,6]
[366536163,1750309842801,-460.0,0.00022739,6]
[366536165,1750309842811,-460.0,0.00022739,6]
[366536167,1750309842822,-460.0,0.00022739,6]
[366536169,1750309842833,-1136.67,0.00022739,6]
[366536171,1750309842844,-460.0,0.00022739,6]
[366536173,1750309842854,-460.0,0.00022739,6]
[366536176,1750309842866,-460.0,0.00022739,6]
[366536178,1750309842877,-773.11,0.00022739,6]
[366536180,1750309842888,-460.0,0.00022739,6]
[366536182,1750309842898,-2305.12,0.00022739,6]
[366536184,1750309842909,-460.0,0.00022739,6]
[366536186,1750309842921,-300.0,0.00022739,2]
[366536188,1750309842932,-460.0,0.00022739,6]
[366536190,1750309842943,-460.0,0.00022739,6]
[366536193,1750309842954,-1517.24,0.00022739,6]
[366536195,1750309842966,-1409.08,0.00022739,6]
[366536197,1750309842977,-534.92,0.00022739,6]
[366536199,1750309842988,-460.0,0.00022739,6]
[366536201,1750309843000,-460.0,0.00022739,6]
[366536203,1750309843011,-460.0,0.00022739,6]
[366536204,1750309843020,-950.28,0.00022739,6]
[366536205,1750309843035,-460.0,0.00022739,6]
[366536206,1750309843045,-787.71,0.00022739,6]
[366536209,1750309843055,-3127.51,0.00022739,6]
[366536213,1750309843241,-792.82,0.00022739,6]
[366536215,1750309843253,-581.37,0.00022739,6]
[366536217,1750309843264,-317.7667429,0.0002274,2]
[366536219,1750309843274,-151.0,0.00022821,7]
[366536220,1750309843286,-151.38447872,0.00022821,6]
[366536221,1750309843296,-168.0,0.00022859,2]
[366536222,1750309843306,-458.82891024,0.00022896,2]
[366536223,1750309843317,-1134.38,0.00022975,2]
[366536224,1750309843326,-502.73,0.00023,3]
[366536225,1750309843336,-5000.0,0.00023011,2]
[366536226,1750309843346,-151.0,0.00023013,7]
[366536227,1750309843356,-151.0,0.00023013,7]
[366536228,1750309843366,-151.0,0.00023013,7]
[366536229,1750309843375,-196.0953532,0.00023013,6]
[366536230,1750309843385,-460.0,0.00023013,6]
[366536231,1750309843395,-453.84000003,0.00023013,6]
[366536232,1750309843404,-746.15,0.00023013,6]
[366536233,1750309843414,-460.0,0.00023013,6]
[366536234,1750309843423,-534.19,0.00023013,6]
[366536235,1750309843433,-522.2,0.00023013,6]
[366536236,1750309843443,-1818.95,0.00023013,6]
[366536237,1750309843453,-460.0,0.00023013,6]
[366536238,1750309843462,-824.03,0.00023013,6]
[366536239,1750309843472,-493.75614925,0.00023013,6]
[366536240,1750309843481,-460.0,0.00023013,6]
[366536241,1750309843491,-460.0,0.00023013,6]
[366536242,1750309843501,-3006.24,0.00023013,6]
[366536243,1750309843510,-548.63,0.00023013,6]
[366536244,1750309843520,-460.0,0.00023013,6]
[366536245,1750309843530,-3049.59,0.00023013,6]
[366536246,1750309843541,-460.0,0.00023013,6]
[366536247,1750309843551,-704.68,0.00023013,6]
[366536248,1750309843560,-1690.2,0.00023013,6]
[366536249,1750309843569,-531.23,0.00023013,6]
[366536250,1750309843579,-3997.06,0.00023013,6]
[366536251,1750309843588,-460.0,0.00023013,6]
[366536252,1750309843597,-2527.93,0.00023013,6]
[366536253,1750309843607,-548.15,0.00023013,6]
[366536254,1750309843616,-534.87,0.00023013,6]
[366536255,1750309843625,-3164.38,0.00023013,6]
[366536256,1750309843634,-847.39,0.00023013,6]
[366536257,1750309843643,-2987.29,0.00023013,6]
[366536258,1750309843653,-460.0,0.00023013,6]
[366536259,1750309843663,-3632.51,0.00023013,6]
[366536260,1750309843672,-1204.87,0.00023013,6]
[366536261,1750309843681,-485.96,0.00023013,6]
[366536262,1750309843691,-460.0,0.00023013,6]
[366536263,1750309843700,-959.8,0.00023013,6]
[366536264,1750309843709,-1064.11,0.00023013,6]
[366536265,1750309843719,-786.47,0.00023013,6]
[366536266,1750309843728,-460.0,0.00023013,6]
[366536267,1750309843738,-1518.83,0.00023013,6]
[366536268,1750309843747,-1462.08,0.00023013,6]
[366536269,1750309843756,-460.0,0.00023013,6]
[366536270,1750309843766,-460.0,0.00023013,6]
[366536271,1750309843776,-463.23,0.00023013,6]
[366536272,1750309843786,-443.55345392,0.00023013,6]
[366536273,1750309843795,-460.0,0.00023013,6]
[366536274,1750309843806,-512.31,0.00023013,6]
[366536275,1750309843816,-460.0,0.00023013,6]
[366536276,1750309843825,-460.0,0.00023013,6]
[366536277,1750309843835,-460.0,0.00023013,6]
[366536278,1750309843845,-460.0,0.00023013,6]
[366536279,1750309843855,-1136.67,0.00023013,6]
[366536280,1750309843864,-460.0,0.00023013,6]
[366536281,1750309843874,-460.0,0.00023013,6]
[366536282,1750309843885,-460.0,0.00023013,6]
[366536283,1750309843894,-773.11,0.00023013,6]
[366536284,1750309843904,-460.0,0.00023013,6]
[366536285,1750309843914,-163.23616011,0.00023013,6]
[366536286,1750309844063,-2141.88383989,0.00023013,6]
[366536287,1750309844073,-460.0,0.00023013,6]
[366536288,1750309844083,-300.0,0.00023013,2]
[366536289,1750309844093,-460.0,0.00023013,6]
[366536290,1750309844102,-460.0,0.00023013,6]
[366536291,1750309844112,-1517.24,0.00023013,6]
[366536292,1750309844121,-1409.08,0.00023013,6]
[366536293,1750309844131,-534.92,0.00023013,6]
[366536294,1750309844141,-460.0,0.00023013,6]
[366536295,1750309844150,-460.0,0.00023013,6]
[366536296,1750309844160,-460.0,0.00023013,6]
[366536297,1750309844170,-950.28,0.00023013,6]
[366536298,1750309844179,-460.0,0.00023013,6]
[366536299,1750309844188,-787.71,0.00023013,6]
[366536300,1750309844198,-3127.51,0.00023013,6]
[366536301,1750309844207,-792.82,0.00023013,6]
[366536302,1750309844217,-581.37,0.00023013,6]
[366536303,1750309844227,-151.0,0.00023032,7]
[366536304,1750309844237,-168.0,0.00023104,2]
[366536305,1750309844246,-223.73951649,0.00023106,13]
[366536306,1750309844255,-1793.0,0.00023116,2]
[366536307,1750309844265,-1000.0,0.00023131,2]
[366536308,1750309844274,-151.0,0.000232,7]
[366536309,1750309844284,-151.0,0.000232,7]
[366536310,1750309844293,-500.0,0.00023229,2]
[366536311,1750309844303,-156.716405,0.00023237,7]
[366536312,1750309844312,-365.6169836,0.0002326,2]
[366536313,1750309844323,-365.6169836,0.0002326,2]
[366536314,1750309844332,-365.6169836,0.0002326,2]
[366536315,1750309844342,-800.0,0.00023262,2]
[366536316,1750309844352,-151.0,0.00023265,7]
[366536317,1750309844361,-151.0,0.00023265,7]
[366536318,1750309844371,-151.0,0.00023265,7]
[366536319,1750309844381,-565.92,0.00023277,3]
[366536320,1750309844390,-215.0738,0.00023284,2]
[366536321,1750309844399,-163.15343317,0.00023286,2]
[366536322,1750309844409,-460.0,0.00023287,6]
[366536323,1750309844418,-746.15,0.00023287,6]
[366536324,1750309844427,-460.0,0.00023287,6]
[366536325,1750309844437,-534.19,0.00023287,6]
[366536326,1750309844447,-522.2,0.00023287,6]
[366536327,1750309844457,-1818.95,0.00023287,6]
[366536328,1750309844467,-460.0,0.00023287,6]
[366536329,1750309844478,-824.03,0.00023287,6]
[366536330,1750309844487,-460.0,0.00023287,6]
[366536331,1750309844498,-460.0,0.00023287,6]
[366536332,1750309844507,-3006.24,0.00023287,6]
[366536333,1750309844517,-548.63,0.00023287,6]
[366536334,1750309844527,-460.0,0.00023287,6]
[366536335,1750309844537,-3049.59,0.00023287,6]
[366536336,1750309844547,-460.0,0.00023287,6]
[366536337,1750309844557,-704.68,0.00023287,6]
[366536338,1750309844567,-1690.2,0.00023287,6]
[366536339,1750309844577,-531.23,0.00023287,6]
[366536340,1750309844586,-3997.06,0.00023287,6]
[366536341,1750309844596,-460.0,0.00023287,6]
[366536342,1750309844606,-2527.93,0.00023287,6]
[366536343,1750309844616,-534.87,0.00023287,6]
[366536344,1750309844626,-3164.38,0.00023287,6]
[366536345,1750309844635,-847.39,0.00023287,6]
[366536346,1750309844645,-2987.29,0.00023287,6]
[366536347,1750309844654,-460.0,0.00023287,6]
[366536348,1750309844663,-3632.51,0.00023287,6]
[366536349,1750309844672,-1204.87,0.00023287,6]
[366536350,1750309844681,-485.96,0.00023287,6]
[366536351,1750309844690,-460.0,0.00023287,6]
[366536352,1750309844699,-959.8,0.00023287,6]
[366536353,1750309844709,-1064.11,0.00023287,6]
[366536354,1750309844721,-786.47,0.00023287,6]
[366536355,1750309844731,-460.0,0.00023287,6]
[366536356,1750309844741,-1518.83,0.00023287,6]
[366536357,1750309844750,-1462.08,0.00023287,6]
[366536358,1750309844760,-460.0,0.00023287,6]
[366536359,1750309844770,-460.0,0.00023287,6]
[366536360,1750309844779,-463.23,0.00023287,6]
[366536361,1750309844788,-512.31,0.00023287,6]
[366536362,1750309844798,-460.0,0.00023287,6]
[366536363,1750309844808,-460.0,0.00023287,6]
[366536364,1750309844817,-460.0,0.00023287,6]
[366536365,1750309844827,-460.0,0.00023287,6]
[366536366,1750309844837,-460.0,0.00023287,6]
[366536367,1750309844846,-1136.67,0.00023287,6]
[366536368,1750309844856,-460.0,0.00023287,6]
[366536369,1750309844865,-460.0,0.00023287,6]
[366536370,1750309844874,-460.0,0.00023287,6]
[366536371,1750309844884,-773.11,0.00023287,6]
[366536372,1750309844893,-460.0,0.00023287,6]
[366536373,1750309844903,-2305.12,0.00023287,6]
[366536374,1750309844912,-460.0,0.00023287,6]
[366536375,1750309844922,-300.0,0.00023287,2]
[366536376,1750309844931,-460.0,0.00023287,6]
[366536377,1750309844940,-460.0,0.00023287,6]
[366536378,1750309844949,-1517.24,0.00023287,6]
[366536379,1750309844959,-1409.08,0.00023287,6]
[366536380,1750309844970,-534.92,0.00023287,6]
[366536381,1750309844980,-460.0,0.00023287,6]
[366536382,1750309844990,-460.0,0.00023287,6]
[366536383,1750309844999,-460.0,0.00023287,6]
[366536384,1750309845010,-950.28,0.00023287,6]
[366536385,1750309845020,-460.0,0.00023287,6]
[366536386,1750309845036,-787.71,0.00023287,6]
[366536387,1750309845045,-3127.51,0.00023287,6]
[366536388,1750309845055,-792.82,0.00023287,6]
[366536389,1750309845064,-581.37,0.00023287,6]
[366536390,1750309845074,-365.6169836,0.00023288,2]
[366536391,1750309845084,-458.82891024,0.00023298,2]
[366536392,1750309845094,-6000.0,0.00023348,3]
[366536393,1750309845104,-151.0,0.0002335,7]
[366536394,1750309845114,-151.0,0.0002335,7]
[366536395,1750309845124,-151.0,0.0002335,7]
[366536396,1750309845134,-153.0,0.00023356,2]
[366536397,1750309845143,-153.0,0.00023356,2]
[366536398,1750309845153,-153.0,0.00023356,2]
[366536399,1750309845163,-153.0,0.00023356,2]
[366536400,1750309845173,-153.0,0.00023356,2]
[366536401,1750309845182,-153.0,0.00023356,2]
[366536402,1750309845192,-153.0,0.00023356,2]
[366536403,1750309845202,-153.0,0.00023356,2]
[366536404,1750309845211,-153.0,0.00023356,2]
[366536405,1750309845223,-153.0,0.00023356,2]
[366536406,1750309845233,-500.0,0.00023356,2]
[366536407,1750309845242,-153.0,0.00023359,2]
[366536408,1750309845252,-153.0,0.00023359,2]
[366536409,1750309845262,-153.0,0.00023359,2]
[366536410,1750309845271,-153.0,0.00023359,2]
[366536411,1750309845280,-6000.0,0.0002336,3]
[366536412,1750309845290,-230.0259007,0.0002336,3]
[366536413,1750309845299,-845.93775772,0.0002336,3]
[366536414,1750309845308,-213.47708638,0.0002336,3]
[366536415,1750309845318,-12544.68530873,0.0002336,3]
[366536416,1750309845327,-8000.0,0.00023368,3]
[366536417,1750309845336,-151.0,0.00023368,7]
[366536418,1750309845346,-151.0,0.00023368,7]
[366536419,1750309845356,-800.0,0.00023382,2]
[366536420,1750309845365,-597.0427,0.00023382,7]
[366536421,1750309845375,-597.0427,0.00023382,7]
[366536422,1750309845385,-10000.0,0.00023389,3]
[366536423,1750309845394,-151.0,0.00023389,7]
[366536424,1750309845403,-151.0,0.00023389,7]
[366536425,1750309845413,-197.78453008,0.00023412,2]
[366536426,1750309845423,-409.90154624,0.0002342,2]
[366536427,1750309845432,-2409.873067,0.00023422,3]
[366536428,1750309845442,-12000.0,0.00023428,3]
[366536429,1750309845451,-800.0,0.00023444,2]
[366536430,1750309845461,-14000.0,0.00023462,4]
[366536431,1750309845471,-151.0,0.00023462,7]
[366536432,1750309845480,-15670.28603289,0.00023463,2]
[366536433,1750309845490,-50434.91645681,0.00023463,2]
[366536434,1750309845503,-597.50656881,0.00023463,2]
[366536435,1750309845514,-3168.09438538,0.00023463,2]
[366536436,1750309845526,-4139.83189452,0.00023463,2]
[366536437,1750309845537,-1589.6451734,0.00023463,2]
[366536438,1750309845552,-490.46702145,0.00023463,2]
[366536439,1750309845823,-160.0,0.0002336,3]